fUSD/lending_fUSD_20251225
["ID","MTS","AMOUNT","RATE_DAILY","PERIOD"]
[399732494,1766641841470,-500.0,0.00013989,2]
[399732495,1766641841480,-674.3,0.00013989,2]
[399732496,1766641841490,-500.0,0.00013989,2]
[399732497,1766641841500,-500.0,0.00013989,2]
[399732498,1766641841510,-500.0,0.00013989,2]
[399732499,1766641841520,-500.0,0.00013989,2]
[399732500,1766641841530,-500.0,0.00013989,2]
[399732501,1766641841540,-500.0,0.00013989,2]
[399732502,1766641841550,-999.0,0.00014023,3]
[399732503,1766641841560,-250.0,0.00014153,2]
[399732504,1766641841570,-83549.4455833,0.00014164,2]
[399732505,1766641841580,-1892.16,0.00014249,2]
[399732506,1766641841590,-3292.0,0.000143,2]
[399732507,1766641841600,-152.35,0.00014378,2]
[399732508,1766641841610,-281.93,0.00014401,2]
[399732509,1766641841619,-162.74,0.00014427,2]
[399732510,1766641841629,-151.0,0.00014444,2]
[399732511,1766641841639,-215.0738,0.00014446,2]
[399732512,1766641841650,-200.0,0.00014447,2]
[399732513,1766641841660,-200.0,0.00014447,2]
[399732514,1766641841671,-500.0,0.00014447,2]
[399732515,1766641841681,-309.94466242,0.00014479,2]
[399732516,1766641841690,-21622.54292245,0.00014504,2]
[399732517,1766641841701,-62080.79342118,0.00014504,2]
[399732518,1766641841711,-10000.0,0.0001451,2]
[399732519,1766641841722,-1892.16,0.00014523,2]
[399732520,1766641841732,-782.38,0.0001455,2]
[399732521,1766641841742,-500.0,0.0001455,2]
[399732522,1766641841752,-1391.84115042,0.0001459,2]
[399732523,1766641841762,-253.89702326,0.00014686,2]
[399732524,1766641841771,-600.0,0.00014702,2]
[399732525,1766641841781,-571.89,0.00014702,2]
[399732526,1766641841791,-1892.16,0.00014797,2]
[399732527,1766641841800,-801.25612123,0.00014914,2]
[399732528,1766641841812,-736.0,0.0001499,2]
[399732529,1766641841822,-200.0,0.00014995,2]
[399732530,1766641841832,-200.0,0.00014995,2]
[399732531,1766641841843,-500.0,0.00014995,2]
[399732532,1766641841853,-152.35,0.00015018,2]
[399732533,1766641841862,-281.93,0.00015036,2]
[399732534,1766641841873,-900.0,0.00015068,2]
[399732535,1766641841882,-1892.16,0.00015071,2]
[399732536,1766641841892,-21622.54292245,0.00015103,2]
[399732537,1766641841903,-62080.79342118,0.00015103,2]
[399732538,1766641841914,-500.0,0.00015137,2]
[399732539,1766641841924,-500.0,0.00015137,2]
[399732540,1766641841933,-521.79,0.00015137,2]
[399732541,1766641841944,-500.0,0.00015137,2]
[399732542,1766641841954,-564.85,0.00015137,2]
[399732543,1766641841963,-500.0,0.00015137,2]
[399732544,1766641841973,-765.26,0.00015137,2]
[399732545,1766641841983,-500.0,0.00015137,2]
[399732546,1766641841993,-500.0,0.00015137,2]
[399732547,1766641842003,-1000.0,0.00015153,2]
[399732548,1766641842012,-600.0,0.0001524,2]
[399732549,1766641842021,-571.89,0.0001524,2]
[399732550,1766641842031,-207.98052348,0.00015288,2]
[399732551,1766641842042,-150.0,0.00015288,2]
[399732552,1766641842052,-150.0,0.00015288,2]
[399732553,1766641842061,-172.12623375,0.00015288,2]
[399732554,1766641842071,-150.0,0.00015288,2]
[399732555,1766641842081,-150.0,0.00015288,2]
[399732556,1766641842090,-150.0,0.00015288,2]
[399732557,1766641842100,-297.40574568,0.00015288,2]
[399732558,1766641842110,-150.0,0.00015288,2]
[399732559,1766641842120,-150.0,0.00015288,2]
[399732560,1766641842130,-150.0,0.00015288,2]
[399732561,1766641842140,-150.0,0.00015288,2]
[399732562,1766641842151,-150.0,0.00015288,2]
[399732563,1766641842161,-150.0,0.00015288,2]
[399732564,1766641842171,-150.0,0.00015288,2]
[399732565,1766641842182,-207.98052348,0.00015305,2]
[399732566,1766641842191,-172.12623375,0.00015305,2]
[399732567,1766641842202,-297.40574568,0.00015305,2]
[399732568,1766641842212,-150.0,0.00015305,2]
[399732569,1766641842223,-150.0,0.00015306,2]
[399732570,1766641842232,-150.0,0.00015312,2]
[399732571,1766641842243,-207.98052348,0.00015322,2]
[399732572,1766641842253,-172.12623375,0.00015322,2]
[399732573,1766641842262,-297.40574568,0.00015322,2]
[399732574,1766641842273,-150.0,0.00015323,2]
[399732575,1766641842283,-150.0,0.00015325,2]
[399732576,1766641842294,-150.0,0.0001533,2]
[399732577,1766641842304,-150.0,0.00015336,2]
[399732578,1766641842314,-207.98052348,0.00015339,2]
[399732579,1766641842324,-172.12623375,0.00015339,2]
[399732580,1766641842334,-297.40574568,0.00015339,2]
[399732581,1766641842344,-150.0,0.0001534,2]
[399732582,1766641842354,-150.0,0.00015343,2]
[399732583,1766641842363,-1892.16,0.00015345,2]
[399732584,1766641842374,-150.0,0.00015353,2]
[399732585,1766641842384,-207.98052348,0.00015356,2]
[399732586,1766641842398,-172.12623375,0.00015356,2]
[399732587,1766641842407,-297.40574568,0.00015356,2]
[399732588,1766641842417,-150.0,0.00015358,2]
[399732589,1766641842427,-150.0,0.00015358,2]
[399732590,1766641842439,-150.0,0.00015359,2]
[399732591,1766641842449,-1391.84115042,0.0001536,2]
[399732592,1766641842459,-150.0,0.00015362,2]
[399732593,1766641842470,-500.0,0.00015364,2]
[399732594,1766641842479,-1109.00444245,0.00015364,2]
[399732595,1766641842489,-150.0,0.00015373,2]
[399732596,1766641842499,-207.98052348,0.00015373,2]
[399732597,1766641842508,-172.12623375,0.00015373,2]
[399732598,1766641842518,-297.40574568,0.00015373,2]
[399732599,1766641842528,-150.0,0.00015375,2]
[399732600,1766641842537,-150.0,0.00015377,2]
[399732601,1766641842547,-150.0,0.0001538,2]
[399732602,1766641842558,-83549.4455833,0.00015383,2]
[399732603,1766641842568,-150.0,0.00015383,2]
[399732604,1766641842579,-162.74,0.00015389,2]
[399732605,1766641842588,-207.98052348,0.00015391,2]
[399732606,1766641842598,-172.12623375,0.00015391,2]
[399732607,1766641842608,-297.40574568,0.00015391,2]
[399732608,1766641842618,-150.0,0.00015393,2]
[399732609,1766641842627,-150.0,0.00015398,2]
[399732610,1766641842638,-150.0,0.00015407,2]
[399732611,1766641842648,-207.98052348,0.00015408,2]
[399732612,1766641842658,-172.12623375,0.00015408,2]
[399732613,1766641842668,-297.40574568,0.00015408,2]
[399732614,1766641842679,-150.0,0.0001541,2]
[399732615,1766641842689,-150.0,0.00015415,2]
[399732616,1766641842698,-150.0,0.00015417,2]
[399732617,1766641842709,-150.0,0.00015418,2]
[399732618,1766641842718,-207.98052348,0.00015425,2]
[399732619,1766641842728,-172.12623375,0.00015425,2]
[399732620,1766641842739,-297.40574568,0.00015425,2]
[399732621,1766641842749,-150.0,0.00015428,2]
[399732622,1766641842758,-150.0,0.00015429,2]
[399732623,1766641842769,-150.0,0.00015431,2]
[399732624,1766641842779,-150.0,0.00015435,2]
[399732625,1766641842790,-166.66,0.00015441,2]
[399732627,1766641842800,-207.98052348,0.00015442,2]
[399732628,1766641842810,-172.12623375,0.00015442,2]
[399732629,1766641842820,-297.40574568,0.00015442,2]
[399732630,1766641842830,-150.0,0.00015445,2]
[399732631,1766641842840,-150.0,0.00015454,2]
[399732632,1766641842850,-150.0,0.00015455,2]
[399732633,1766641842860,-150.0,0.00015458,2]
[399732634,1766641842870,-207.98052348,0.00015459,2]
[399732635,1766641842881,-172.12623375,0.00015459,2]
[399732636,1766641842891,-297.40574568,0.00015459,2]
[399732637,1766641842901,-150.0,0.00015463,2]
[399732638,1766641842911,-150.0,0.00015466,2]
[399732639,1766641842920,-150.0,0.00015472,2]
[399732640,1766641842930,-207.98052348,0.00015476,2]
[399732641,1766641842941,-172.12623375,0.00015476,2]
[399732642,1766641842951,-297.40574568,0.00015476,2]
[399732643,1766641842962,-150.0,0.00015476,2]
[399732644,1766641842972,-150.0,0.00015479,2]
[399732645,1766641842982,-150.0,0.0001548,2]
[399732646,1766641842992,-150.0,0.00015484,2]
[399732647,1766641843003,-150.0,0.00015491,2]
[399732648,1766641843013,-207.98052348,0.00015494,2]
[399732649,1766641843022,-172.12623375,0.00015494,2]
[399732650,1766641843032,-297.40574568,0.00015494,2]
[399732651,1766641843042,-150.0,0.00015498,2]
[399732652,1766641843052,-150.0,0.000155,2]
[399732653,1766641843062,-150.0,0.000155,2]
[399732654,1766641843072,-150.0,0.00015503,2]
[399732655,1766641843083,-150.0,0.00015509,2]
[399732656,1766641843093,-207.98052348,0.00015511,2]
[399732657,1766641843104,-172.12623375,0.00015511,2]
[399732658,1766641843113,-297.40574568,0.00015511,2]
[399732659,1766641843123,-150.0,0.00015515,2]
[399732660,1766641843132,-150.0,0.00015527,2]
[399732661,1766641843142,-150.0,0.00015528,2]
[399732662,1766641843152,-207.98052348,0.00015528,2]
[399732663,1766641843161,-172.12623375,0.00015528,2]
[399732664,1766641843171,-297.40574568,0.00015528,2]
[399732665,1766641843181,-150.0,0.00015533,2]
[399732666,1766641843190,-150.0,0.00015542,2]
[399732667,1766641843200,-200.0,0.00015543,2]
[399732668,1766641843210,-200.0,0.00015543,2]
[399732669,1766641843287,-500.0,0.00015543,2]
[399732670,1766641843297,-207.98052348,0.00015545,2]
[399732671,1766641843307,-172.12623375,0.00015545,2]
[399732672,1766641843317,-297.40574568,0.00015545,2]
[399732673,1766641843327,-150.0,0.00015546,2]
[399732674,1766641843336,-150.0,0.00015549,2]
[399732675,1766641843346,-150.0,0.0001555,2]
[399732676,1766641843356,-150.0,0.00015551,2]
[399732677,1766641843366,-150.0,0.00015556,2]
[399732678,1766641843375,-207.98052348,0.00015562,2]
[399732679,1766641843384,-172.12623375,0.00015562,2]
[399732680,1766641843398,-297.40574568,0.00015562,2]
[399732682,1766641843408,-150.0,0.00015565,2]
[399732684,1766641843419,-150.0,0.00015568,2]
[399732685,1766641843429,-150.0,0.00015571,2]
[399732686,1766641843440,-150.0,0.00015571,2]
[399732687,1766641843449,-150.0,0.00015575,2]
[399732688,1766641843459,-207.98052348,0.00015579,2]
[399732689,1766641843469,-172.12623375,0.00015579,2]
[399732690,1766641843479,-297.40574568,0.00015579,2]
[399732691,1766641843489,-150.0,0.00015583,2]
[399732692,1766641843499,-150.0,0.00015585,2]
[399732693,1766641843508,-150.0,0.00015585,2]
[399732694,1766641843518,-207.98052348,0.00015597,2]
[399732695,1766641843528,-172.12623375,0.00015597,2]
[399732696,1766641843538,-297.40574568,0.00015597,2]
[399732697,1766641843548,-150.0,0.00015599,2]
[399732698,1766641843557,-150.0,0.00015602,2]
[399732699,1766641843567,-150.0,0.00015603,2]
[399732701,1766641843578,-207.98052348,0.00015614,2]
[399732703,1766641843587,-172.12623375,0.00015614,2]
[399732705,1766641843596,-297.40574568,0.00015614,2]
[399732706,1766641843606,-150.0,0.00015614,2]
[399732708,1766641843615,-1892.16,0.00015619,2]
[399732710,1766641843625,-150.0,0.0001562,2]
[399732711,1766641843635,-150.0,0.0001562,2]
[399732712,1766641843644,-150.0,0.00015623,2]
[399732713,1766641843654,-150.0,0.00015627,2]
[399732715,1766641843664,-207.98052348,0.00015631,2]
[399732717,1766641843674,-172.12623375,0.00015631,2]
[399732718,1766641843685,-297.40574568,0.00015631,2]
[399732719,1766641843694,-3240.0,0.00015637,2]
[399732720,1766641843705,-150.0,0.00015638,2]
[399732721,1766641843715,-150.0,0.00015638,2]
[399732722,1766641843725,-150.0,0.00015642,2]
[399732723,1766641843735,-500.0,0.00015644,2]
[399732724,1766641843745,-150.0,0.00015645,2]
[399732725,1766641843754,-150.0,0.00015647,2]
[399732726,1766641843764,-207.98052348,0.00015648,2]
[399732727,1766641843774,-172.12623375,0.00015648,2]
[399732728,1766641843783,-297.40574568,0.00015648,2]
[399732729,1766641843794,-150.0,0.00015655,2]
[399732730,1766641843804,-150.0,0.00015657,2]
[399732731,1766641843814,-207.98052348,0.00015665,2]
[399732732,1766641843823,-172.12623375,0.00015665,2]
[399732733,1766641843833,-297.40574568,0.00015665,2]
[399732734,1766641843843,-150.0,0.00015665,2]
[399732735,1766641843852,-150.0,0.0001567,2]
[399732736,1766641843862,-150.0,0.0001567,2]
[399732737,1766641843872,-150.0,0.00015673,2]
[399732738,1766641843882,-150.0,0.00015675,2]
[399732739,1766641843892,-150.0,0.0001568,2]
[399732740,1766641843901,-207.98052348,0.00015682,2]
[399732741,1766641843911,-172.12623375,0.00015682,2]
[399732742,1766641843920,-297.40574568,0.00015682,2]
[399732743,1766641843930,-187.95,0.0001569,2]
[399732744,1766641843940,-150.0,0.0001569,2]
[399732745,1766641843950,-150.0,0.00015694,2]
[399732746,1766641843959,-150.0,0.00015694,2]
[399732747,1766641843969,-207.98052348,0.00015699,2]
[399732748,1766641843979,-172.12623375,0.00015699,2]
[399732749,1766641843989,-297.40574568,0.00015699,2]
[399732750,1766641843999,-21622.54292245,0.00015702,2]
[399732751,1766641844009,-62080.79342118,0.00015702,2]
[399732752,1766641844019,-150.0,0.00015708,2]
[399732753,1766641844028,-187.95,0.0001571,2]
[399732754,1766641844038,-150.0,0.00015712,2]
[399732755,1766641844047,-150.0,0.00015712,2]
[399732756,1766641844057,-150.0,0.00015712,2]
[399732757,1766641844067,-150.0,0.00015712,2]
[399732758,1766641844076,-207.98052348,0.00015717,2]
[399732759,1766641844086,-172.12623375,0.00015717,2]
[399732760,1766641844096,-297.40574568,0.00015717,2]
[399732761,1766641844105,-920.0,0.00015718,2]
[399732762,1766641844115,-150.0,0.00015718,2]
[399732763,1766641844126,-782.38,0.00015724,2]
[399732764,1766641844135,-500.0,0.00015724,2]
[399732765,1766641844145,-765.26,0.00015724,2]
[399732766,1766641844155,-150.0,0.00015725,2]
[399732767,1766641844165,-187.95,0.0001573,2]
[399732768,1766641844175,-150.0,0.00015731,2]
[399732769,1766641844185,-207.98052348,0.00015734,2]
[399732770,1766641844195,-172.12623375,0.00015734,2]
[399732771,1766641844204,-297.40574568,0.00015734,2]
[399732772,1766641844214,-150.0,0.00015735,2]
[399732773,1766641844224,-150.0,0.00015742,2]
[399732774,1766641844235,-150.0,0.00015743,2]
[399732775,1766641844245,-150.0,0.00015745,2]
[399732776,1766641844255,-150.0,0.00015749,2]
[399732777,1766641844265,-207.98052348,0.00015751,2]
[399732778,1766641844275,-172.12623375,0.00015751,2]
[399732779,1766641844285,-297.40574568,0.00015751,2]
[399732780,1766641844295,-150.0,0.00015755,2]
[399732781,1766641844304,-150.0,0.0001576,2]
[399732782,1766641844314,-150.0,0.00015766,2]
[399732783,1766641844323,-150.0,0.00015768,2]
[399732784,1766641844333,-207.98052348,0.00015768,2]
[399732785,1766641844342,-172.12623375,0.00015768,2]
[399732786,1766641844351,-297.40574568,0.00015768,2]
[399732787,1766641844361,-150.0,0.00015778,2]
[399732788,1766641844371,-150.0,0.00015783,2]
[399732789,1766641844381,-207.98052348,0.00015785,2]
[399732790,1766641844393,-172.12623375,0.00015785,2]
[399732791,1766641844403,-297.40574568,0.00015785,2]
[399732792,1766641844414,-150.0,0.00015786,2]
[399732793,1766641844423,-150.0,0.0001579,2]
[399732794,1766641844435,-150.0,0.00015796,2]
[399732795,1766641844445,-150.0,0.00015797,2]
[399732796,1766641844456,-207.98052348,0.00015802,2]
[399732797,1766641844468,-172.12623375,0.00015802,2]
[399732798,1766641844478,-297.40574568,0.00015802,2]
[399732799,1766641844487,-520.84,0.00015804,2]
[399732800,1766641844497,-150.0,0.00015805,2]
[399732801,1766641844506,-150.0,0.0001581,2]
[399732802,1766641844516,-150.0,0.00015813,2]
[399732803,1766641844525,-150.0,0.00015814,2]
[399732804,1766641844535,-207.98052348,0.0001582,2]
[399732805,1766641844545,-172.12623375,0.0001582,2]
[399732806,1766641844555,-297.40574568,0.0001582,2]
[399732807,1766641844564,-150.0,0.00015823,2]
[399732808,1766641844574,-150.0,0.00015824,2]
[399732809,1766641844584,-150.0,0.00015831,2]
[399732810,1766641844594,-520.84,0.00015831,2]
[399732811,1766641844604,-207.98052348,0.00015837,2]
[399732812,1766641844614,-172.12623375,0.00015837,2]
[399732813,1766641844624,-297.40574568,0.00015837,2]
[399732814,1766641844635,-150.0,0.00015838,2]
[399732815,1766641844644,-150.0,0.0001584,2]
[399732816,1766641844654,-150.0,0.00015842,2]
[399732817,1766641844664,-150.0,0.00015848,2]
[399732818,1766641844674,-207.98052348,0.00015854,2]
[399732819,1766641844684,-172.12623375,0.00015854,2]
[399732820,1766641844694,-150.0,0.00015854,2]
[399732821,1766641844703,-297.40574568,0.00015854,2]
[399732822,1766641844713,-150.0,0.00015854,2]
[399732823,1766641844723,-150.0,0.00015854,2]
[399732824,1766641844732,-520.84,0.00015857,2]
[399732825,1766641844742,-150.0,0.0001586,2]
[399732826,1766641844752,-150.0,0.00015862,2]
[399732827,1766641844761,-150.0,0.00015866,2]
[399732828,1766641844771,-207.98052348,0.00015871,2]
[399732829,1766641844781,-172.12623375,0.00015871,2]
[399732830,1766641844790,-297.40574568,0.00015871,2]
[399732831,1766641844799,-150.0,0.00015876,2]
[399732832,1766641844810,-150.0,0.00015878,2]
[399732833,1766641844820,-150.0,0.00015882,2]
[399732834,1766641844830,-150.0,0.00015883,2]
[399732835,1766641844840,-150.0,0.00015886,2]
[399732836,1766641844850,-207.98052348,0.00015888,2]
[399732837,1766641844860,-172.12623375,0.00015888,2]
[399732838,1766641844870,-297.40574568,0.00015888,2]
[399732839,1766641844880,-1892.16,0.00015893,2]
[399732840,1766641844890,-150.0,0.00015897,2]
[399732841,1766641844900,-150.0,0.00015901,2]
[399732842,1766641844909,-207.98052348,0.00015905,2]
[399732843,1766641844919,-172.12623375,0.00015905,2]
[399732844,1766641844929,-297.40574568,0.00015905,2]
[399732845,1766641844938,-150.0,0.0001591,2]
[399732846,1766641844947,-150.0,0.00015913,2]
[399732847,1766641844957,-150.0,0.00015915,2]
[399732848,1766641844967,-150.0,0.00015918,2]
[399732849,1766641844977,-207.98052348,0.00015923,2]
[399732850,1766641844987,-172.12623375,0.00015923,2]
[399732851,1766641844996,-297.40574568,0.00015923,2]
[399732852,1766641845006,-150.0,0.00015925,2]
[399732853,1766641845015,-150.0,0.00015925,2]
[399732854,1766641845025,-150.0,0.00015934,2]
[399732855,1766641845035,-150.0,0.00015934,2]
[399732856,1766641845044,-150.0,0.00015936,2]
[399732857,1766641845054,-207.98052348,0.0001594,2]
[399732858,1766641845069,-172.12623375,0.0001594,2]
[399732859,1766641845079,-297.40574568,0.0001594,2]
[399732860,1766641845088,-150.0,0.00015941,2]
[399732861,1766641845098,-166.66,0.00015951,2]
[399732862,1766641845108,-150.0,0.00015952,2]
[399732863,1766641845118,-150.0,0.00015953,2]
[399732864,1766641845128,-207.98052348,0.00015957,2]
[399732865,1766641845138,-172.12623375,0.00015957,2]
[399732866,1766641845148,-297.40574568,0.00015957,2]
[399732867,1766641845158,-150.0,0.00015958,2]
[399732868,1766641845168,-150.0,0.00015967,2]
[399732869,1766641845178,-150.0,0.00015971,2]
[399732870,1766641845194,-150.0,0.00015971,2]
[399732871,1766641845208,-207.98052348,0.00015974,2]
[399732872,1766641845219,-172.12623375,0.00015974,2]
[399732873,1766641845230,-297.40574568,0.00015974,2]
[399732874,1766641845240,-150.0,0.00015981,2]
[399732875,1766641845250,-150.0,0.00015988,2]
[399732876,1766641845261,-150.0,0.00015989,2]
[399732877,1766641845281,-207.98052348,0.00015991,2]
[399732878,1766641845296,-172.12623375,0.00015991,2]
[399732879,1766641845306,-297.40574568,0.00015991,2]
[399732880,1766641845316,-150.0,0.00015995,2]
[399732881,1766641845327,-500.0,0.00015999,2]
[399732882,1766641845337,-674.3,0.00015999,2]
[399732883,1766641845347,-500.0,0.00015999,2]
[399732884,1766641845358,-500.0,0.00015999,2]
[399732885,1766641845367,-500.0,0.00015999,2]
[399732886,1766641845377,-500.0,0.00015999,2]
[399732887,1766641845387,-500.0,0.00015999,2]
[399732888,1766641845401,-500.0,0.00015999,2]
[399732889,1766641845411,-150.0,0.00016003,2]
[399732890,1766641845421,-150.0,0.00016005,2]
[399732891,1766641845431,-150.0,0.00016006,2]
[399732892,1766641845442,-150.0,0.00016006,2]
[399732893,1766641845452,-150.0,0.00016008,2]
[399732894,1766641845461,-207.98052348,0.00016008,2]
[399732895,1766641845474,-172.12623375,0.00016008,2]
[399732896,1766641845485,-297.40574568,0.00016008,2]
[399732897,1766641845495,-150.0,0.0001601,2]
[399732898,1766641845505,-150.0,0.00016023,2]
[399732899,1766641845515,-207.98052348,0.00016025,2]
[399732900,1766641845524,-172.12623375,0.00016025,2]
[399732901,1766641845534,-297.40574568,0.00016025,2]
[399732902,1766641845544,-150.0,0.00016026,2]
[399732903,1766641845553,-150.0,0.00016029,2]
[399732904,1766641845563,-150.0,0.00016041,2]
[399732905,1766641845572,-207.98052348,0.00016043,2]
[399732906,1766641845581,-172.12623375,0.00016043,2]
[399732907,1766641845591,-297.40574568,0.00016043,2]
[399732908,1766641845601,-150.0,0.00016043,2]
[399732909,1766641845611,-150.0,0.00016045,2]
[399732910,1766641845621,-150.0,0.00016052,2]
[399732911,1766641845631,-150.0,0.00016053,2]
[399732912,1766641845642,-150.0,0.00016058,2]
[399732913,1766641845651,-207.98052348,0.0001606,2]
[399732914,1766641845661,-172.12623375,0.0001606,2]
[399732915,1766641845671,-297.40574568,0.0001606,2]
[399732916,1766641845681,-150.0,0.00016063,2]
[399732917,1766641845691,-150.0,0.00016066,2]
[399732918,1766641845700,-150.0,0.00016072,2]
[399732919,1766641845711,-150.0,0.00016076,2]
[399732920,1766641845721,-207.98052348,0.00016077,2]
[399732921,1766641845731,-172.12623375,0.00016077,2]
[399732922,1766641845742,-297.40574568,0.00016077,2]
[399732923,1766641845752,-150.0,0.00016077,2]
[399732924,1766641845762,-150.0,0.00016082,2]
[399732925,1766641845772,-200.0,0.00016091,2]
[399732926,1766641845782,-200.0,0.00016091,2]
[399732927,1766641845792,-500.0,0.00016091,2]
[399732928,1766641845802,-150.0,0.00016092,2]
[399732929,1766641845812,-150.0,0.00016093,2]
[399732930,1766641845822,-207.98052348,0.00016094,2]
[399732931,1766641845833,-172.12623375,0.00016094,2]
[399732932,1766641845844,-297.40574568,0.00016094,2]
[399732933,1766641845854,-150.0,0.00016095,2]
[399732934,1766641845865,-150.0,0.000161,2]
[399732935,1766641845875,-150.0,0.00016101,2]
[399732936,1766641845885,-150.0,0.00016111,2]
[399732937,1766641845895,-207.98052348,0.00016111,2]
[399732938,1766641845905,-172.12623375,0.00016111,2]
[399732939,1766641845915,-297.40574568,0.00016111,2]
[399732940,1766641845925,-9999.99,0.00016116,2]
[399732941,1766641845935,-150.0,0.00016119,2]
[399732942,1766641845945,-150.0,0.00016125,2]
[399732943,1766641845956,-150.0,0.00016128,2]
[399732944,1766641845967,-207.98052348,0.00016128,2]
[399732945,1766641845976,-172.12623375,0.00016128,2]
[399732946,1766641845987,-297.40574568,0.00016128,2]
[399732947,1766641845996,-1391.84115042,0.0001613,2]
[399732948,1766641846006,-150.0,0.00016137,2]
[399732949,1766641846016,-150.0,0.00016137,2]
[399732950,1766641846027,-150.0,0.00016137,2]
[399732951,1766641846037,-150.0,0.00016137,2]
[399732952,1766641846048,-150.0,0.00016137,2]
[399732953,1766641846058,-150.0,0.00016137,2]
[399732954,1766641846068,-150.0,0.00016137,2]
[399732955,1766641846079,-207.98052348,0.00016146,2]
[399732956,1766641846089,-172.12623375,0.00016146,2]
[399732957,1766641846099,-297.40574568,0.00016146,2]
[399732958,1766641846109,-150.0,0.00016146,2]
[399732959,1766641846119,-150.0,0.00016149,2]
[399732960,1766641846128,-150.0,0.00016155,2]
[399732961,1766641846138,-207.98052348,0.00016163,2]
[399732962,1766641846148,-172.12623375,0.00016163,2]
[399732963,1766641846158,-297.40574568,0.00016163,2]
[399732964,1766641846167,-150.0,0.00016163,2]
[399732965,1766641846177,-1892.16,0.00016167,2]
[399732966,1766641846186,-150.0,0.00016173,2]
[399732967,1766641846201,-150.0,0.00016174,2]
[399732968,1766641846212,-150.0,0.00016179,2]
[399732969,1766641846222,-207.98052348,0.0001618,2]
[399732970,1766641846232,-172.12623375,0.0001618,2]
[399732971,1766641846242,-297.40574568,0.0001618,2]
[399732972,1766641846252,-150.0,0.00016181,2]
[399732973,1766641846262,-150.0,0.00016182,2]
[399732974,1766641846272,-150.0,0.00016192,2]
[399732975,1766641846281,-150.0,0.00016197,2]
[399732976,1766641846291,-207.98052348,0.00016197,2]
[399732977,1766641846301,-172.12623375,0.00016197,2]
[399732978,1766641846311,-297.40574568,0.00016197,2]
[399732979,1766641846321,-150.0,0.00016198,2]
[399732980,1766641846331,-150.0,0.00016202,2]
[399732981,1766641846341,-150.0,0.00016208,2]
[399732982,1766641846351,-150.0,0.00016211,2]
[399732983,1766641846361,-207.98052348,0.00016214,2]
[399732984,1766641846370,-172.12623375,0.00016214,2]
[399732986,1766641846380,-297.40574568,0.00016214,2]
[399732987,1766641846392,-150.0,0.00016216,2]
[399732988,1766641846403,-150.0,0.00016221,2]
[399732989,1766641846423,-150.0,0.00016222,2]
[399732990,1766641846439,-150.0,0.00016229,2]
[399732991,1766641846452,-207.98052348,0.00016231,2]
[399732992,1766641846466,-172.12623375,0.00016231,2]
[399732993,1766641846476,-297.40574568,0.00016231,2]
[399732994,1766641846488,-150.0,0.00016231,2]
[399732995,1766641846498,-150.0,0.00016233,2]
[399732996,1766641846508,-150.0,0.00016245,2]
[399732997,1766641846519,-150.0,0.00016248,2]
[399732998,1766641846530,-207.98052348,0.00016249,2]
[399732999,1766641846540,-172.12623375,0.00016249,2]
[399733001,1766641846551,-297.40574568,0.00016249,2]
[399733002,1766641846562,-150.0,0.00016251,2]
[399733003,1766641846571,-150.0,0.00016264,2]
[399733004,1766641846587,-207.98052348,0.00016266,2]
[399733005,1766641846596,-172.12623375,0.00016266,2]